[Event "German Bundesliga 2022-23"]
[Site "Germany"]
[Date "2022.11.27"]
[Round "4.16"]
[White "Wagner, Dennis"]
[Black "Fedorovsky, Michael"]
[Result "1-0"]
[ECO "E15"]
[WhiteElo "2580"]
[BlackElo "2411"]
[Annotator "TA"]
[PlyCount "97"]
[EventDate "2022.10.21"]
[EventType "team-tourn"]
[EventCountry "GER"]
[SourceTitle "playchess.com"]
[Source "ChessBase"]
[SourceQuality "1"]
[TimeControl "40/6000+30:3000+30"]

{[%evp 14,97,25,26,25,6,5,-1,0,-2,6,-4,-7,0,1,0,6,-25,0,0,4,0,0,0,16,0,32,10,40,49,49,46,99,101,86,83,101,95,87,94,103,93,100,79,102,100,149,84,77,88,204,170,239,6,8,6,6,4,5,4,0,0,0,0,0,0,0,0,8,6,16,16,107,107,387,394,394,394,387,376,536,536,529,514,491,440]} 1. d4 {[%emt 0:00:06]} Nf6 {[%emt 0:00:06]} 2. c4 {[%emt 0:00:13]} e6 {[%emt 0:00:07]} 3. Nf3 {[%emt 0:00:09]} b6 {[%emt 0:01:28]} 4. g3 {[%emt 0:00:15]} Ba6 {[%emt 0:01:38]} 5. b3 {[%emt 0:00:09]} Bb4+ {[%emt 0:01:04]} 6. Bd2 {[%emt 0:00:07]} Be7 {[%emt 0:00:04]} 7. Bg2 {[%emt 0:00:17]} c6 {[%emt 0:00:26]} 8. O-O {[%emt 0:00:22]} O-O {[%emt 0:00:29] E15: Queen's Indian: 4 g3 sidelines, 4 g3 Ba6 and 4 g3 Bb7 early deviations.} 9. a4 $5 {[%emt 0:20:31][%mdl 4] 9.Qc2 is a critical line. Exploring less charted territory.} d5 {[%emt 0:02:25]} 10. Na3 {[%emt 0:14:40]} (10. Ne5 {is interesting.} dxc4 11. bxc4 Qxd4 12. Bc3) 10... Nbd7 {[%emt 0:12:18] The position is equal.} 11. Qc2 {[%emt 0:13:16]} Rc8 {[%emt 0:18:16]} 12. Rfc1 {[%emt 0:07:01]} Ne4 {[%emt 0:07:43]} 13. Be1 {[%emt 0:11:28]} f5 {[%emt 0:01:11] [#]} 14. e3 $146 {[%emt 0:11:20]} ({Predecessor:} 14. Qa2 Bf6 15. b4 Bb7 16. Rab1 g5 17. e3 Bg7 18. Nd2 Kh8 19. Nxe4 fxe4 20. Qe2 {1-0 (43) Baburin,A (2419)-Froewis,G (2470) Dublin 2020}) 14... g5 {[%emt 0:11:30]} 15. b4 {[%emt 0:00:24]} Qe8 {[%emt 0:01:27]} (15... g4 {feels hotter.} 16. Ne5 Nxe5 17. dxe5 Rf7) 16. Qb3 {[%emt 0:09:35]} Bb7 {[%emt 0:05:21]} 17. Nd2 {[%emt 0:11:55]} Qf7 {[%emt 0:12:58]} 18. f3 {[%emt 0:02:24]} Nef6 {[%emt 0:04:20]} 19. a5 {[%emt 0:03:23]} (19. cxd5 {simplifies} exd5 20. e4 dxe4 21. Qxf7+ Rxf7 22. fxe4 fxe4 23. Nxe4 Nxe4 24. Bxe4 Bf6 25. Nc2) 19... bxa5 {[%emt 0:03:51]} 20. Nc2 {[%emt 0:00:02]} axb4 {[%emt 0:01:24] Strongly threatening ...c5.} 21. Rxa7 {[%emt 0:00:12]} Rb8 $1 {[%emt 0:01:17]} 22. c5 {[%emt 0:00:59]} Bxc5 {[%emt 0:08:46]} 23. dxc5 $16 {[%emt 0:00:12]} Nxc5 {[%emt 0:00:03]} 24. Qb1 {[%emt 0:00:54][%cal Oc2d4] Threatens to win with Nd4!} Nd3 {[%emt 0:00:59]} 25. Nxb4 {[%emt 0:00:39]} Nxc1 {[%emt 0:00:20]} 26. Qxc1 {[%emt 0:00:03][%cal Od2b3]} Ra8 {[%emt 0:03:37]} 27. Rxa8 {[%emt 0:00:08] White has more active pieces.} (27. Nxc6 $6 Qc7 28. Qb1 Rxa7 29. Nxa7 Ba6 $11) 27... Rxa8 {[%emt 0:00:07]} 28. Nb3 $1 {[%emt 0:00:03][%cal Ob3c5]} (28. Nxc6 $2 {loses.} Rc8 29. Qa1 Bxc6 $19) 28... Nd7 {[%emt 0:00:55] Inhibits Nc5.} 29. Nd3 $1 {[%emt 0:01:18]} ({But not} 29. Nxc6 $6 Rc8 30. Nba5 Ne5 31. Nxe5 Rxc1 $11) 29... e5 {[%emt 0:01:03]} ({Black should try} 29... Ba6 30. Qxc6 Qe8) 30. Nbc5 {[%emt 0:01:06]} ({White should play} 30. Na5 e4 31. Nc5 (31. Nxb7 exd3 32. Na5 c5 $11)) 30... Nxc5 {[%emt 0:01:24]} 31. Qxc5 {[%emt 0:01:38]} Qf8 {[%emt 0:05:05]} (31... e4 $16 32. Ne5 Qf8) 32. Qb6 $18 {[%emt 0:00:53]} Qb8 {[%emt 0:02:17]} (32... Qe7 {is a better defense.} 33. Bf1 Ra6) 33. Bc3 $2 {[%emt 0:00:04]} (33. Bf1 $1 $18) 33... Qa7 $1 $11 {[%emt 0:01:06]} 34. Qxa7 {[%emt 0:00:34]} Rxa7 {[%emt 0:00:03]} 35. Bxe5 {[%emt 0:00:47]} Ra3 {[%emt 0:00:53][%cal Ba7a3,Ba3e3,Be3e1,Be1b1,Bb1c1][%mdl 32]} 36. Nc5 {[%emt 0:00:03]} Rxe3 {[%emt 0:00:19]} 37. Bd4 {[%emt 0:01:03]} Re1+ {[%emt 0:00:04]} 38. Kf2 {[%emt 0:00:04]} Rb1 {[%emt 0:01:07]} 39. f4 {[%emt 0:00:34]} g4 {[%emt 0:01:46]} 40. h4 {[%emt 0:00:56]} Bc8 {[%emt 0:00:33]} 41. Bf1 {[%emt 0:04:10]} h5 {[%emt 0:06:29]} 42. Bd3 {[%emt 0:02:10][%mdl 1024] White has compensation.} Rc1 {[%emt 0:02:11]} (42... Rd1 $11) 43. Nb3 $1 $16 {[%emt 0:09:43]} Rh1 {[%emt 0:01:40][%mdl 8192] [#] A mistake that costs the game.} (43... Rd1 $16 44. Ke2 Rh1) 44. Bf1 $1 $18 {[%emt 0:02:42]} Rh2+ {[%emt 0:10:28] [#]} 45. Bg2 $1 {[%emt 0:00:14]} Ba6 {[%emt 0:00:06]} 46. Kg1 {[%emt 0:04:25]} Rxg2+ {[%emt 0:00:05]} (46... Rh3 {was called for.}) 47. Kxg2 {[%emt 0:00:03] White is clearly winning.} Kf7 {[%emt 0:00:35]} 48. Bc5 {[%emt 0:02:56]} Bd3 {[%emt 0:09:54]} 49. Nd4 {[%emt 0:01:54] Weighted Error Value: White=0.12 (very precise) /Black=0.31} 1-0

[Event "German Bundesliga 2022-23"]
[Site "Germany"]
[Date "2022.11.25"]
[Round "7"]
[White "Pentala, Harikrishna"]
[Black "Nguyen, Thai Dai Van"]
[Result "1/2-1/2"]
[ECO "D02"]
[WhiteElo "2717"]
[BlackElo "2634"]
[Annotator "TA"]
[PlyCount "44"]
[EventDate "2022.10.21"]
[EventType "team-tourn"]
[EventCountry "GER"]
[SourceTitle "playchess.com"]
[Source "ChessBase"]
[SourceQuality "1"]
[TimeControl "40/6000+30:3000+30"]

{[%evp 20,44,8,23,16,14,10,15,24,0,0,0,0,0,0,0,0,0,0,0,16,0,15,-9,-6,-29,0]} 1. Nf3 {[%emt 0:01:00]} d5 {[%emt 0:01:00]} 2. g3 {[%emt 0:00:00]} c5 {[%emt 0:01:30]} 3. Bg2 {[%emt 0:01:00]} Nc6 {[%emt 0:00:30]} 4. d4 {[%emt 0:00:30]} e6 {[%emt 0:00:00]} 5. O-O {[%emt 0:01:30]} Nf6 {[%emt 0:00:00]} 6. b3 {[%emt 0:02:30]} Be7 {[%emt 0:09:30]} 7. Bb2 {[%emt 0:06:30]} O-O {[%emt 0:00:30]} 8. Nbd2 {[%emt 0:07:30]} Bd7 {[%emt 0:23:30][%cal Bc8d7,Bd7c6,Bc6d5][%mdl 32]} 9. c4 {[%emt 0:03:30]} cxd4 {[%emt 0:01:30]} 10. Nxd4 {[%emt 0:00:30]} Nxd4 {[%emt 0:00:30]} 11. Bxd4 {[%emt 0:00:30]} Bc6 {[%emt 0:00:00] D02: 1 d4 d5 2 Nf3 sidelines, including 2...Nf6 3 g3 and 2...Nf6 3 Bf4.} 12. Rc1 {[%emt 0:02:30]} Rc8 {[%emt 0:03:00] [#]} 13. a4 $146 {[%emt 0:10:30]} ({Predecessor:} 13. cxd5 Bxd5 14. Rxc8 Qxc8 15. Bxf6 Bxf6 16. Bxd5 exd5 17. Nf3 Qf5 18. Qd2 Rc8 19. Qe3 {1-0 (59) Artemiev,V (2704)-So,W (2772) chess24.com INT 2021}) 13... a6 {[%emt 0:11:30] The position is equal.} 14. cxd5 {[%emt 0:06:30]} Bxd5 {[%emt 0:00:30] [#] Strongly threatening ...Rxc1.} 15. Rxc8 {[%emt 0:05:30]} Qxc8 {[%emt 0:00:30]} 16. Bxf6 {[%emt 0:00:30]} Bxf6 {[%emt 0:00:30]} 17. Bxd5 {[%emt 0:00:30]} exd5 {[%emt 0:00:00]} 18. Nf3 {[%emt 0:00:30]} Qe6 {[%emt 0:02:00]} 19. Qd2 {[%emt 0:04:30]} d4 {[%emt 0:00:30]} 20. Rb1 {[%emt 0:03:30]} h6 {[%emt 0:07:30]} 21. b4 {[%emt 0:06:30]} Rc8 {[%emt 0:00:30]} 22. Nxd4 {[%emt 0:08:30]} Bxd4 {[%emt 0:04:30] An even fight not without its subleties.   Weighted Error Value: White=0.07 (flawless) /Black=0.05 (flawless)} (22... Qd7 $5 {[%cal Rd7d4]} 23. e3 Qxa4 $11) 1/2-1/2

[Event "German Bundesliga 2022-23"]
[Site "Germany"]
[Date "2022.11.25"]
[Round "7"]
[White "Moiseenko, Alexander"]
[Black "Ragger; Markus"]
[Result "1/2-1/2"]
[ECO "D85"]
[WhiteElo "2582"]
[BlackElo "2632"]
[Annotator "TA"]
[PlyCount "49"]
[EventDate "2022.10.21"]
[EventType "team-tourn"]
[EventCountry "GER"]
[SourceTitle "playchess.com"]
[Source "ChessBase"]
[SourceQuality "1"]
[TimeControl "40/6000+30:3000+30"]

{[%evp 19,49,0,0,-6,12,0,12,7,12,7,10,13,13,6,6,0,10,14,14,18,21,21,21,14,14,14,22,27,59,0,0,0]} 1. d4 {[%emt 0:01:00]} Nf6 {[%emt 0:01:00]} 2. c4 {[%emt 0:00:00]} g6 {[%emt 0:00:00]} 3. Nc3 {[%emt 0:00:00]} d5 {[%emt 0:00:00]} 4. cxd5 {[%emt 0:00:30]} Nxd5 {[%emt 0:00:30]} 5. e4 {[%emt 0:01:30]} Nxc3 {[%emt 0:00:00]} 6. bxc3 {[%emt 0:00:00]} Bg7 {[%emt 0:00:00]} 7. Nf3 {[%emt 0:00:00]} c5 {[%emt 0:00:30]} 8. Bb5+ {[%emt 0:00:30]} Nc6 {[%emt 0:00:00]} 9. O-O {[%emt 0:00:30]} O-O {[%emt 0:00:00]} 10. Bxc6 {[%emt 0:00:30]} bxc6 {[%emt 0:00:30]} 11. Qc2 {[%emt 0:00:30] D85: Exchange Grünfeld: Unusual White 7th moves and lines with 7 Nf3.} Qa5 {[%emt 0:00:00] Prevents Ba3.} 12. a4 {[%emt 0:19:30]} cxd4 {[%emt 0:01:00]} 13. cxd4 {[%emt 0:01:30][%cal Oc1a3]} Bg4 {[%emt 0:00:30]} 14. Ne5 {[%emt 0:07:30]} ({But not} 14. Qxc6 Bxf3 15. gxf3 Bxd4 $15) 14... Bxe5 {[%emt 0:02:30]} 15. dxe5 {[%emt 0:00:30]} Qxe5 {[%emt 0:00:30]} 16. Bb2 {[%emt 0:01:30]} Qa5 {[%emt 0:02:30] [#]} 17. f4 $146 {[%emt 0:11:30]} (17. Ba3 {simplifies} Rfe8 18. Qc5 Qxc5 19. Bxc5 Be6 20. Rfb1) ({Predecessor:} 17. h3 Be6 18. Ba3 c5 19. Qxc5 Qxc5 20. Bxc5 Rfe8 21. Rfb1 Bc8 22. a5 Ba6 23. Rb4 {½-½ (45) Goryachkina,A (2610)-Vaishali,R (2401) Warsaw 2021}) 17... Rfd8 {[%emt 0:49:30]} (17... Rad8 $5 {[%cal Rd8d2]} 18. Rf2 Rd6 $11) 18. Rf2 {[%emt 0:02:30] Inhibits Rd2. With the idea f5.} Rab8 {[%emt 0:02:30]} 19. f5 {[%emt 0:11:30] White wants to play h3.} gxf5 {[%emt 0:00:30]} 20. h3 {[%emt 0:00:30]} ({Reject} 20. Qxc6 fxe4 21. Qxe4 Be6 $15) 20... Bh5 {[%emt 0:00:30][%cal Of5f4]} 21. exf5 {[%emt 0:06:30] [#] Threatens to win with g4.} f6 $1 {[%emt 0:01:30]} 22. Qxc6 {[%emt 0:12:30] Strongly threatening Qe6+.} Qd5 {[%emt 0:11:30]} 23. Qc7 {[%emt 0:02:30][%csl LRa7,LRe7]} Qe4 {[%emt 0:08:30] Prevents Re1.} 24. Kh2 {[%emt 0:10:58]} (24. Qxa7 $14 Bd1 25. Qc7) 24... Qe3 $11 {[%emt 0:10:49]} 25. Raf1 {[%emt 0:11:53] Weighted Error Value: White=0.08 (flawless) /Black=0.07 (flawless)} 1/2-1/2

[Event "German Bundesliga 2022-23"]
[Site "Germany"]
[Date "2022.11.25"]
[Round "7"]
[White "Saltaev, Mihail"]
[Black "Naumann, Alexander"]
[Result "1/2-1/2"]
[ECO "C77"]
[WhiteElo "2469"]
[BlackElo "2513"]
[Annotator "TA"]
[PlyCount "43"]
[EventDate "2022.10.21"]
[EventType "team-tourn"]
[EventCountry "GER"]
[SourceTitle "playchess.com"]
[Source "ChessBase"]
[SourceQuality "1"]
[TimeControl "40/6000+30:3000+30"]

{[%evp 12,43,11,21,18,18,18,0,0,0,0,0,0,4,0,0,6,-12,-19,-24,-20,-29,-33,-36,-20,-47,-35,-45,-23,-39,0,-29,0,-38]} 1. e4 {[%emt 0:01:00]} e5 {[%emt 0:01:00]} 2. Nf3 {[%emt 0:00:00]} Nc6 {[%emt 0:00:00]} 3. Bb5 {[%emt 0:00:00][%cal Bf1b5,Bb5a4,Ba4b3,Bb3d5][%mdl 32]} a6 {[%emt 0:00:00]} 4. Ba4 {[%emt 0:00:30]} Nf6 {[%emt 0:00:30]} 5. d3 {[%emt 0:00:00]} b5 {[%emt 0:00:30]} 6. Bb3 {[%emt 0:00:00]} Bc5 {[%emt 0:01:30]} 7. Nc3 {[%emt 0:00:30] 7.c3 is a critical line.} d6 {[%emt 0:00:30] C77: Ruy Lopez: 3...a6 4 Ba4 Nf6, unusual lines.} 8. Nd5 {[%emt 0:00:30]} h6 {[%emt 0:01:30] Against Bg5} 9. Nxf6+ {[%emt 0:00:30]} Qxf6 {[%emt 0:00:00]} 10. Bd5 {[%emt 0:00:30]} Bd7 {[%emt 0:02:00]} 11. Be3 {[%emt 0:00:00]} O-O {[%emt 0:06:30]} 12. O-O {[%emt 0:01:00]} Rad8 {[%emt 0:03:30]} 13. Bxc6 {[%emt 0:16:30]} Bxc6 {[%emt 0:00:30]} 14. Qe1 {[%emt 0:00:30] [#]} Bxe3 $146 {[%emt 0:32:30]} ({Predecessor:} 14... Qe7 15. Bxc5 dxc5 16. Qe3 f5 17. exf5 Rxf5 18. Nd2 Qg5 19. Qxg5 Rxg5 20. f3 c4 21. Rac1 cxd3 22. cxd3 Rxd3 23. Rxc6 Rxd2 24. Rf2 Rd1+ {½-½ (24) Zvjaginsev,V (2653)-Ganguly,S (2585) Moscow 2005}) 15. fxe3 {[%emt 0:00:30][%cal Of3d4] [#] aiming for Nd4!} Bd7 {[%emt 0:00:30]} 16. Qa5 {[%emt 0:18:30][%csl LRa6,LRc7]} c5 {[%emt 0:07:30]} 17. Rf2 {[%emt 0:04:30]} Ra8 {[%emt 0:04:30]} 18. Raf1 {[%emt 0:08:30]} Qd8 {[%emt 0:07:30]} 19. Qe1 {[%emt 0:05:30]} Qe7 {[%emt 0:02:30]} 20. Qa5 {[%emt 0:05:30]} Qd8 {[%emt 0:00:30]} 21. Qe1 {[%emt 0:00:30]} Qe7 {[%emt 0:00:00]} 22. Qa5 {[%emt 0:00:30] Weighted Error Value: White=0.06 (flawless) /Black=0.07 (flawless)} 1/2-1/2

[Event "German Bundesliga 2022-23"]
[Site "Germany"]
[Date "2022.10.21"]
[Round "7.1"]
[White "Narayanan.S.L"]
[Black "Eljanov, Pavel"]
[Result "1/2-1/2"]
[ECO "D37"]
[WhiteElo "2663"]
[BlackElo "2697"]
[Annotator "TA"]
[PlyCount "85"]
[EventDate "2022.10.21"]
[EventType "team-tourn"]
[EventCountry "GER"]
[SourceTitle "playchess.com"]
[Source "ChessBase"]
[SourceQuality "1"]
[TimeControl "40/6000+30:3000+30"]

{[%evp 9,85,10,38,24,37,15,18,6,1,21,14,22,13,13,16,5,7,0,25,13,12,0,6,0,31,0,0,0,0,0,0,0,0,-4,0,0,85,90,86,96,94,95,125,129,161,118,129,129,118,22,62,0,0,0,0,0,35,44,56,16,76,51,104,85,88,96,93,75,78,0,0,0,0,0,0,0,0,0]} 1. d4 {[%emt 0:00:03]} d5 {[%emt 0:00:25]} 2. c4 {[%emt 0:00:21]} e6 {[%emt 0:00:07]} 3. Nf3 {[%emt 0:00:52]} Nf6 {[%emt 0:00:36]} 4. Nc3 {[%emt 0:00:10]} Nbd7 {[%emt 0:00:07]} 5. Qc2 {[%emt 0:02:43]} dxc4 {[%emt 0:00:59]} 6. e4 {[%emt 0:00:16] D37: Queen's Gambit Declined: 5 Bf4.} c5 {[%emt 0:00:11]} 7. Bxc4 {[%emt 0:01:34]} cxd4 {[%emt 0:01:39]} 8. Nxd4 {[%emt 0:00:07]} Ne5 {[%emt 0:01:41]} 9. Bb5+ {[%emt 0:01:56]} Bd7 {[%emt 0:00:05]} 10. O-O {[%emt 0:06:27]} a6 {[%emt 0:00:10]} (10... Bb4 {is interesting.} 11. Bf4 Ng6 12. e5 Bxc3 13. bxc3 Nd5) 11. Bxd7+ {[%emt 0:01:08]} Nfxd7 {[%emt 0:00:05] [#]} 12. Rd1 $146 {[%emt 0:05:59]} ({Predecessor:} 12. Qe2 Rc8 13. f4 Nc4 14. Kh1 Bb4 15. f5 Bxc3 16. bxc3 e5 17. Ne6 {1-0 (26) Schwerteck,M (2154)-Klaus,D (1994) Tuebingen 2007}) 12... Qh4 {[%emt 0:00:15] Prevents Bf4.} 13. Be3 {[%emt 0:10:13]} Be7 {[%emt 0:21:18]} (13... Ng4 14. Nf3 Nxe3 15. Qd2 $16 (15. Nxh4 $2 Nxc2 16. Rac1 Nb4 $19) (15. fxe3 Qh5 $16)) 14. Qe2 {[%emt 0:07:38]} Rd8 {[%emt 0:10:57]} 15. f3 {[%emt 0:24:54]} O-O {[%emt 0:02:09]} 16. Rac1 {[%emt 0:00:05]} Nb8 {[%emt 0:14:22]} 17. Nb3 {[%emt 0:03:24]} Nbc6 {[%emt 0:00:39]} 18. Bb6 {[%emt 0:06:32]} Rxd1+ {[%emt 0:10:32]} 19. Rxd1 {[%emt 0:00:06]} Qh5 {[%emt 0:09:29]} 20. Na4 {[%emt 0:07:32]} Ng6 {[%emt 0:00:16]} 21. Be3 {[%emt 0:02:08]} Bg5 {[%emt 0:08:25]} 22. Nac5 {[%emt 0:03:06]} Nf4 {[%emt 0:00:59]} (22... Rb8 $11) 23. Bxf4 $16 {[%emt 0:01:07]} Bxf4 {[%emt 0:00:03]} 24. g3 {[%emt 0:00:12]} Bb8 {[%emt 0:01:52]} 25. Nxb7 {[%emt 0:01:00]} Ne5 {[%emt 0:05:43]} 26. Kg2 {[%emt 0:00:10]} g5 {[%emt 0:02:06]} 27. N7c5 {[%emt 0:00:53]} g4 {[%emt 0:02:51][%cal Rg4f3] [#]} 28. f4 {[%emt 0:01:37] Active counter play!} Nf3 {[%emt 0:01:26] [#]} 29. Kh1 {[%emt 0:01:38]} (29. h4 $1 $16 {Strongly threatening Nd7.} Bxf4 30. Nd7 Nxh4+ 31. gxh4 Qxh4 32. Rh1 (32. Nxf8 $2 Qh2+ 33. Kf1 Qh1+ 34. Kf2 g3#) 32... Qg3+ 33. Kf1) 29... Rc8 $1 $11 {[%emt 0:02:06]} 30. Nd7 {[%emt 0:00:32] Pair of Knights!} (30. Nxa6 $6 Ba7 $16) (30. e5 $1 $14) 30... Kg7 $1 {[%emt 0:01:26]} 31. Nxb8 {[%emt 0:01:48]} Rxb8 {[%emt 0:00:11]} 32. Nd4 {[%emt 0:06:47]} Rb4 {[%emt 0:04:33]} (32... Qc5 $5 {[%cal Rf3d4]} 33. Nxf3 gxf3 $11) 33. Nxf3 {[%emt 0:00:22]} gxf3 $14 {[%emt 0:00:02][%mdl 4096] Endgame KQR-KQR} 34. Qc2 {[%emt 0:00:29]} (34. Qe3 $5 {[%cal Re3c3]} Rc4 35. Rf1 $16 (35. Qd3 Qh3 $16)) 34... e5 {[%emt 0:00:34]} ({But not} 34... f2 35. Kg2 $16) (34... Qb5 $11 {remains equal.}) 35. Rf1 $16 {[%emt 0:00:52]} Qg4 {[%emt 0:05:28]} ({Better is} 35... Rd4 $14) 36. fxe5 {[%emt 0:03:29]} Rxe4 {[%emt 0:01:46][%cal Og4h3] Hoping for ...Qh3!} 37. Qc3 {[%emt 0:00:45]} Qe6 {[%emt 0:02:09][%csl LRa2,LRe5]} 38. Qxf3 {[%emt 0:00:31]} Rxe5 {[%emt 0:00:06]} 39. Qc3 {[%emt 0:04:13]} (39. b3 $16) 39... f6 $11 {[%emt 0:00:35] The position is equal.} 40. Qc7+ {[%emt 0:01:51]} Kg6 {[%emt 0:00:10] And now ...Qd5+ would win.} 41. Qc2+ {[%emt 0:51:08]} Kg7 {[%emt 0:02:54]} 42. Rd1 {[%emt 0:00:00]} Re2 {[%emt 0:03:00]} 43. Rd7+ {[%emt 0:00:00] Weighted Error Value: White=0.13 (very precise) /Black=0.13 (very precise)} 1/2-1/2

[Event "German Bundesliga 2022-23"]
[Site "Germany"]
[Date "2022.11.25"]
[Round "7.1"]
[White "Ivic, Velimir"]
[Black "McShane, Luke J"]
[Result "1-0"]
[ECO "E11"]
[WhiteElo "2560"]
[BlackElo "2637"]
[Annotator "TA"]
[PlyCount "77"]
[EventDate "2022.10.21"]
[EventType "team-tourn"]
[EventCountry "GER"]
[SourceTitle "playchess.com"]
[Source "ChessBase"]
[SourceQuality "1"]
[TimeControl "40/6000+30:3000+30"]

{[%evp 10,77,24,12,29,27,31,26,30,27,31,5,14,22,31,22,60,52,56,58,72,67,68,62,75,68,68,60,66,56,75,77,80,52,45,50,55,55,77,56,95,102,107,37,76,66,99,61,118,133,154,160,148,124,568,563,509,547,771,784,741,721,29984,29985,29985,29986,29986,29987,29986,29986]} 1. d4 {[%emt 0:00:11]} Nf6 {[%emt 0:00:17]} 2. c4 {[%emt 0:00:06]} e6 {[%emt 0:00:24]} 3. Nf3 {[%emt 0:00:19]} Bb4+ {[%emt 0:00:19]} 4. Nbd2 {[%emt 0:00:41]} O-O {[%emt 0:00:16]} 5. a3 {[%emt 0:00:10]} Be7 {[%emt 0:00:07]} 6. e4 {[%emt 0:00:13]} d6 {[%emt 0:00:05][%cal Oe6e5] E11: Bogo-Indian.} 7. Be2 {[%emt 0:00:23]} Nfd7 {[%emt 0:04:17] is cutting edge theory.} 8. b4 {[%emt 0:01:33]} e5 {[%emt 0:02:17] White has an edge.} 9. d5 {[%emt 0:00:44]} a5 {[%emt 0:00:09]} 10. Bb2 {[%emt 0:00:06]} axb4 {[%emt 0:09:01]} 11. axb4 {[%emt 0:00:09]} Rxa1 {[%emt 0:00:04]} 12. Qxa1 {[%emt 0:00:06]} c5 {[%emt 0:01:09]} 13. b5 {[%emt 0:01:18] [#]} Nb6 $146 {[%emt 0:00:06]} ({Predecessor:} 13... Nf6 14. Qa7 Nbd7 15. O-O Nh5 16. g3 g6 17. Ne1 Ng7 18. Nd3 f5 19. f4 exf4 20. Nxf4 {0-1 (39) Kaczmarek,A (2124)-Bhambure,S (2314) Suwalki 2022}) 14. Qa7 {[%emt 0:01:40]} Qc7 {[%emt 0:06:16]} 15. h3 {[%emt 0:17:44] Inhibits Bg4.} f5 {[%emt 0:02:44]} 16. O-O {[%emt 0:05:02]} fxe4 {[%emt 0:02:38]} 17. Nxe4 {[%emt 0:00:08]} Bf5 {[%emt 0:00:09]} 18. Nfd2 {[%emt 0:03:59]} (18. Nfg5 {looks sharper.} N8d7 19. Qa3 Nf6 20. Qe3) 18... N8d7 {[%emt 0:02:01] [#] aiming for ...Ra8.} 19. Qa3 {[%emt 0:02:04]} Qd8 {[%emt 0:25:52]} 20. Qe3 {[%emt 0:10:43]} Bg6 {[%emt 0:05:59]} 21. f4 {[%emt 0:07:19]} exf4 {[%emt 0:19:50]} 22. Rxf4 {[%emt 0:00:35]} Rxf4 {[%emt 0:15:53]} 23. Qxf4 {[%emt 0:00:16]} Qf8 {[%emt 0:00:03]} 24. Qg3 {[%emt 0:04:57]} Kh8 {[%emt 0:02:11]} 25. h4 {[%emt 0:04:29][%cal Bh3h4,Bh4h5][%mdl 32]} Nf6 {[%emt 0:01:46]} 26. Ng5 {[%emt 0:02:25]} (26. Bxf6 $16 gxf6 27. Qf4) 26... Nbd7 {[%emt 0:00:07]} 27. Ne6 {[%emt 0:02:54]} Qf7 {[%emt 0:00:12]} 28. Qe3 {[%emt 0:07:58]} Nf8 {[%emt 0:06:18]} (28... Bf5 $14) 29. g4 $16 {[%emt 0:05:22] Threatens to win with h5. White is much more active.} h6 {[%emt 0:03:39]} 30. h5 $36 {[%emt 0:09:07][%mdl 2048] White is on the roll.} Bh7 {[%emt 0:00:02]} 31. g5 {[%emt 0:11:14]} hxg5 {[%emt 0:00:01][%mdl 8192] Loses the game.} (31... Nxh5 $16 32. Bxh5 (32. gxh6 Qg6+ 33. Kf1 Nxe6 $11) 32... Qxh5 33. Bxg7+ Kg8 34. Bxf8 (34. Bxh6 Qg4+ 35. Kf2 Nxe6 $11) 34... Bxf8) 32. Nxg5 $18 {[%emt 0:00:15]} Qe8 {[%emt 0:00:02]} 33. h6 {[%emt 0:01:59]} N8d7 {[%emt 0:00:02]} 34. hxg7+ {[%emt 0:02:28]} Kxg7 {[%emt 0:00:01]} 35. Nxh7 {[%emt 0:00:31] And now Bd3 would win.} Kxh7 {[%emt 0:00:09]} 36. Bd3+ {[%emt 0:00:08] A strong pair of Bishops. White mates.} Kg7 {[%emt 0:00:39]} 37. Qg5+ {[%emt 0:00:49]} Kf8 {[%emt 0:00:19]} 38. Qh6+ {[%emt 0:00:04]} Kg8 {[%emt 0:00:06] [#]} 39. Bh7+ $1 {[%emt 0:00:06][%mdl 512] Weighted Error Value: White=0.06 (flawless) /Black=0.44} 1-0

[Event "German Bundesliga 2022-23"]
[Site "Germany"]
[Date "2022.11.25"]
[Round "7.2"]
[White "Areshchenko, Alexander"]
[Black "Brkic, Ante"]
[Result "1/2-1/2"]
[ECO "B92"]
[WhiteElo "2632"]
[BlackElo "2610"]
[Annotator "TA"]
[PlyCount "41"]
[EventDate "2022.10.21"]
[EventType "team-tourn"]
[EventCountry "GER"]
[SourceTitle "playchess.com"]
[Source "ChessBase"]
[SourceQuality "1"]
[TimeControl "40/6000+30:3000+30"]

{[%evp 17,41,4,19,14,4,10,14,11,16,8,24,0,6,6,4,9,7,-14,-14,-12,-24,-18,0,0,0,-8]} 1. e4 {[%emt 0:00:03]} c5 {[%emt 0:00:06]} 2. Nf3 {[%emt 0:00:04]} d6 {[%emt 0:00:04]} 3. d4 {[%emt 0:00:04]} cxd4 {[%emt 0:00:05]} 4. Nxd4 {[%emt 0:00:03]} Nf6 {[%emt 0:00:09]} 5. Nc3 {[%emt 0:00:06]} a6 {[%emt 0:00:03]} 6. Be2 {[%emt 0:00:19]} e5 {[%emt 0:00:29]} 7. Nb3 {[%emt 0:00:05]} Be7 {[%emt 0:00:05]} 8. O-O {[%emt 0:00:43]} O-O {[%emt 0:00:08]} 9. Be3 {[%emt 0:00:18]} Be6 {[%emt 0:01:18]} 10. Re1 $1 {[%emt 0:00:05][%mdl 4] is currently scoring better than 10.Qd2. B92: Sicilian Najdorf: 6 Be2.} Nbd7 {[%emt 0:03:04]} 11. a4 {[%emt 0:00:56][%cal Ba2a4,Ba4a5][%mdl 32]} Qc7 {[%emt 0:00:33]} 12. a5 {[%emt 0:02:43]} Rfc8 {[%emt 0:02:26] [#]} 13. Qd3 $146 {[%emt 0:14:38]} ({Predecessor:} 13. Bf3 h6 14. h3 b5 15. axb6 Nxb6 16. Na5 Rab8 17. Bc1 Nc4 18. Nxc4 Bxc4 19. Be2 Bxe2 20. Rxe2 {1-0 (46) So,W (2774)-Shankland,S (2712) Saint Louis 2022}) 13... h6 {[%emt 0:04:41]} 14. Rec1 {[%emt 0:13:05]} Nc5 {[%emt 0:28:35]} 15. Nxc5 {[%emt 0:01:54]} dxc5 {[%emt 0:00:04]} 16. Qd1 {[%emt 0:16:28]} c4 {[%emt 0:15:03]} 17. Na4 {[%emt 0:16:19]} Nxe4 {[%emt 0:12:31]} 18. Nb6 {[%emt 0:03:41]} Rd8 {[%emt 0:03:05]} 19. Qf1 {[%emt 0:03:34]} Rab8 {[%emt 0:00:20]} (19... c3 $5 {[%cal Rc3b2]} 20. Nxa8 Rxa8 $11) 20. Bxc4 {[%emt 0:01:31]} Bxc4 {[%emt 0:00:22]} 21. Qxc4 {[%emt 0:13:18] A balanced but interesting game.   Weighted Error Value: White=0.05 (flawless) /Black=0.06 (flawless)} 1/2-1/2